Cogmind - Beta 9 @@@ ROGUE MODE // 2019.10.26 @ 23:13:24 Player: Dendrocnid Result: Destroyed by G-47 Trooper with Particle Gun Performance ------------- Evolutions (3) 1500 Regions Visited (7) 1400 Robots Destroyed (100) 500 Value Destroyed (4484) 4484 Prototype IDs (1) 20 Alien Tech Used (0) 0 Bonus (1710) 1710 TOTAL SCORE: 9614 Bonus ------- High Alert Combat Kills 235 Follower Combat Kills 75 Entered Garrisons 400 Used RIF Installer 1000 Cogmind --------- Core Integrity 0/700 Matter 195/300 Energy 284/290 System Corruption 2% Temperature Cool (18) Location -7/Garrison Parts ------- Power (1) Improved Deuterium Engine Propulsion (2) Armored Huge Wheel Utility (8) High-capacity Storage Unit High-capacity Storage Unit High-capacity Storage Unit High-capacity Storage Unit High-capacity Storage Unit Weapon (2) Gauss Rifle Heavy Flak Cannon Inventory (44) Deuterium Engine Light Nuclear Core Improved Deuterium Engine Wheel Wheel Wheel Improved Heat Sink High-capacity Storage Unit High-capacity Storage Unit Compact Matter Pod (150) Improved Light Armor Plating Relay Coupler [NC] (22) Relay Coupler [NC] (27) Relay Coupler [NC] (22) Relay Coupler [NC] (29) Relay Coupler [NC] (30) Relay Coupler [Swarmer] (31) Relay Coupler [Swarmer] (38) Relay Coupler [Brawler] (30) Relay Coupler [Demolisher] (19) Relay Coupler [Specialist] (20) Relay Coupler [Specialist] (26) Relay Coupler [Hunter] (13) Relay Coupler [Hunter] (14) Relay Coupler [Hunter] (15) Long-range Tractor Beam Lightning Gun Heavy Assault Rifle Heavy Assault Rifle Minigun Heavy Flak Cannon Rocket Launcher Heavy Missile Launcher Improved Datajack Remote Datajack Remote Datajack Axe Peak State ------------ Power Light Nuclear Core Propulsion Armored Huge Wheel Utility High-capacity Storage Unit High-capacity Storage Unit High-capacity Storage Unit High-capacity Storage Unit High-capacity Storage Unit Medium Reactive Plating Relay Coupler [Grunt] Relay Coupler [Sentry] Weapon High-powered Shotgun Gauss Rifle Inventory Deuterium Engine Light Deuterium Engine Light Nuclear Core Improved Deuterium Engine Wheel Wheel Wheel Armored Huge Wheel Improved Heat Sink High-capacity Storage Unit High-capacity Storage Unit Improved Light Armor Plating Improved Light Armor Plating Relay Coupler [NC] Relay Coupler [NC] Relay Coupler [Swarmer] Relay Coupler [Demolisher] Relay Coupler [Specialist] Relay Coupler [Hunter] Long-range Tractor Beam Lightning Gun Heavy Assault Rifle Heavy Assault Rifle Minigun Flak Gun Rocket Launcher Heavy Missile Launcher Datajack Improved Datajack Mining Claw Axe [Rating: 42] Favorites ----------- Power Light Nuclear Core Engine Light Deuterium Engine Power Core Light Nuclear Core Propulsion Armored Huge Wheel Wheel Armored Huge Wheel Utility High-capacity Storage Unit Device Improved Heat Sink Storage High-capacity Storage Unit Hackware Relay Coupler [Sentry] Protection Core Shielding Weapon Axe Energy Gun EM Pulse Gun Energy Cannon Light EM Pulse Cannon Ballistic Gun Gauss Rifle Ballistic Cannon Heavy Flak Cannon Launcher Rocket Launcher Slashing Weapon Axe Special Melee Weapon Improved Datajack Build | -11 -10 -9 -8 -7 -7 -7 -7 ------- Run | Scr Mat Mat Mat Fac Gar Fac Gar Slots Evolved 6 | . . 2 2 2 . . . Power . | . . . . . . . . Propulsion . | . . . . . . . . Utility 6 | . . 2 2 2 . . . Weapon . | . . . . . . . . Parts Attached 98 | 6 11 4 34 19 16 5 3 Power 10 | 1 1 . 5 1 1 . 1 Engine 3 | 1 . . . . 1 . 1 Core 7 | . 1 . 5 1 . . . Reactor . | . . . . . . . . Propulsion 13 | 2 4 . 4 2 1 . . Treads . | . . . . . . . . Leg . | . . . . . . . . Wheel 13 | 2 4 . 4 2 1 . . Hover . | . . . . . . . . Flight . | . . . . . . . . Utility 29 | 1 2 2 6 9 8 . 1 Device 2 | . . 1 . . 1 . . Storage 7 | 1 2 1 1 1 1 . . Processor . | . . . . . . . . Hackware 3 | . . . . . 2 . 1 Protection 17 | . . . 5 8 4 . . Artifact . | . . . . . . . . Weapon 46 | 2 4 2 19 7 6 5 1 Energy Gun 13 | 2 4 1 6 . . . . Energy Cannon 1 | . . . 1 . . . . Ballistic Gun 16 | . . 1 5 3 4 3 . Ballistic Cannon 3 | . . . 1 . . 1 1 Launcher 3 | . . . 2 . 1 . . Special Weapon . | . . . . . . . . Impact Weapon . | . . . . . . . . Slashing Weapon 9 | . . . 4 4 . 1 . Piercing Weapon . | . . . . . . . . Special Melee Weapon 1 | . . . . . 1 . . Unidentified Prototypes 1 | . . . 1 . . . . Parts Lost 47 | . 3 1 21 12 8 . 2 Power 9 | . 1 . 5 1 1 . 1 Propulsion 8 | . 1 . 4 2 1 . . Utility 15 | . . . 3 7 4 . 1 Weapon 15 | . 1 1 9 2 2 . . Highest Loss Streak 5 | . 2 1 4 4 5 . 1 Average Slot Usage (%) 85 | . 89 99 87 82 84 68 71 Engine 2 | . 10 . . . 2 7 6 Core 5 | . 3 11 8 7 3 . . Wheel 10 | . 24 22 11 6 6 7 7 Device 1 | . . 11 3 . 1 . . Storage 35 | . 26 33 36 33 38 38 38 Protection 10 | . . . 10 17 14 . . Energy Gun 3 | . 23 11 2 . . . . Ballistic Gun 5 | . . 10 3 4 13 3 7 Slashing Weapon 5 | . . . 9 10 . 5 . Naked Turns . | . . . . . . . . Heaviest Build 200 | 13 73 107 154 199 200 176 182 Greatest Support 28 | 20 26 26 28 28 28 28 28 Greatest Overweight (x) 59 | . 22 4 14 7 59 6 6 Average Overweight (x) 5 | . 2 4 5 5 6 6 6 Largest Inventory Capacity 44 | 6 20 28 36 44 44 44 44 Average Capacity 36 | 5 18 27 36 39 44 44 44 Most Carried 38 | 6 16 18 31 30 37 36 38 Average Carried 25 | 3 12 16 23 26 31 33 36 Final Capacity 44 | . . . . . . . 44 Final Carried 37 | . . . . . . . 37 Class Distribution -------------------- 76% | Hauler-Mutant 21% | Bothacker-Mutant Dominant Class ---------------- Hauler-Mutant | -10/Materials Hauler-Mutant | -9/Materials Hauler-Mutant | -8/Materials Hauler-Mutant | -7/Factory Bothacker-Mutant | -7/Garrison Bothacker-Mutant | -7/Factory Bothacker-Mutant | -7/Garrison Resources | -11 -10 -9 -8 -7 -7 -7 -7 ----------- Run | Scr Mat Mat Mat Fac Gar Fac Gar Matter Collected 2174 | 195 160 65 862 279 501 . 112 Remotely . | . . . . . . . . Salvage Created 3729 | . 375 115 1312 1043 772 . 112 Parts 234 | . 34 12 71 66 46 . 5 Haulers Intercepted 1 | . . . 1 . . . . Recyclers Shooed . | . . . . . . . . Parts Field Recycled . | . . . . . . . . Retrieved Matter . | . . . . . . . . Parts Self-Destructed . | . . . . . . . . Prevented . | . . . . . . . . Kills | -11 -10 -9 -8 -7 -7 -7 -7 ------- Run | Scr Mat Mat Mat Fac Gar Fac Gar Combat Hostiles Destroyed 87 | . 6 5 31 24 18 . 3 Melee 25 | . . . 7 18 . . . Guns 38 | . 5 5 9 6 12 . 1 Cannons 8 | . . . 6 . . . 2 AOE 14 | . 1 . 7 . 6 . . Classes Destroyed 13 | . 7 . 4 1 1 . . Worker 4 | . 1 . 3 . . . . Builder 2 | . 2 . . . . . . Hauler 1 | . . . 1 . . . . Recycler 2 | . 1 . . 1 . . . Operator 2 | . 1 . 1 . . . . Watcher 2 | . 2 . . . . . . Swarmer 21 | . 3 4 4 10 . . . Grunt 41 | . 3 1 16 8 11 . 2 Brawler 2 | . . . . . 2 . . Duelist 3 | . . . 1 2 . . . Sentry 14 | . . . 7 2 4 . 1 Hunter 3 | . . . 3 . . . . Programmer 3 | . . . . 2 1 . . Best Kill Streak 7 | . 4 3 7 4 7 . 2 Combat Bots Only 7 | . 3 3 5 4 7 . 2 Max Kills in Single Turn 3 | . 1 1 2 1 3 . 2 Gunslinging . | . . . . . . . . Exploded 3 | . 1 . 2 . 3 . . Melee 1 | . . . 1 1 . . . Uniques/NPCs Destroyed . | . . . . . . . . Combat | -11 -10 -9 -8 -7 -7 -7 -7 -------- Run | Scr Mat Mat Mat Fac Gar Fac Gar Damage Taken 8009 | . 305 128 2967 2283 1777 68 481 Core 1104 | . 31 32 337 288 259 14 143 Absorbed by Shields 36 | . . . . . 36 . . Core Remaining (%) 79 | 100 87 92 38 . . . . Volleys Fired 242 | . 33 15 111 27 41 1 14 Largest 2 | . 2 2 2 2 2 1 2 Hottest 110 | . 80 63 110 50 53 53 81 Shots Fired 408 | . 50 29 192 43 67 1 26 Gun 328 | . 50 29 128 43 64 . 14 Cannon 69 | . . . 56 . . 1 12 Launcher 11 | . . . 8 . 3 . . Special . | . . . . . . . . Kinetic 273 | . . 15 124 43 64 1 26 Thermal . | . . . . . . . . Explosive 11 | . . . 8 . 3 . . Electromagnetic 124 | . 50 14 60 . . . . Robot Hit Streak 11 | . 11 3 8 9 7 . 8 Robot Miss Streak 5 | . 3 2 5 3 3 . 4 Penetration Max 1 | . . . . . . . 1 Secondary Targets 3 | . 1 . 1 . 1 . . Max Gunslinging Chain 1 | . 1 . 1 . 1 . . Shots Hit Robots 335 | . 34 14 140 77 51 . 19 Core Hits 183 | . 17 6 61 39 42 . 18 Critical Hits 2 | . . . 1 1 . . . Critical Kills 2 | . . . 1 1 . . . Critical Parts Destroyed . | . . . . . . . . Melee Attacks 120 | . . . 35 69 10 6 . Impact . | . . . . . . . . Slashing 110 | . . . 35 69 . 6 . Piercing . | . . . . . . . . Sneak Attacks 1 | . . . . 1 . . . Combat Hostiles . | . . . . . . . . Follow-up Attacks 11 | . . . 4 7 . . . Damage Inflicted 8573 | . 530 164 3467 2054 1801 . 557 Guns 3297 | . 499 164 1023 427 942 . 242 Cannons 1295 | . . . 980 . . . 315 Explosions 1674 | . 31 . 784 . 859 . . Melee 2295 | . . . 680 1615 . . . Ramming 12 | . . . . 12 . . . Kinetic 3366 | . . 65 1375 427 942 . 557 Thermal 261 | . 31 . 230 . . . . Explosive 1413 | . . . 554 . 859 . . Electromagnetic 1226 | . 499 99 628 . . . . Impact . | . . . . . . . . Slashing 2295 | . . . 680 1615 . . . Piercing . | . . . . . . . . Highest Corruption 2 | . . . . 1 2 2 2 Average Corruption 1 | . . . . 1 1 2 2 Corruption Purged . | . . . . . . . . Effects 21 | . . . . . 14 5 2 Message Errors 10 | . . . . . 7 2 1 Heat Flow Errors 2 | . . . . . 2 . . Energy Discharges 3 | . . . . . 2 1 . Data Loss (minor) 4 | . . . . . 2 2 . Targeting Errors 2 | . . . . . 1 . 1 Overload Shots . | . . . . . . . . Overflow Damage 132 | . . . 46 51 35 . . Projectiles 25 | . . . 25 . . . . Explosions 54 | . . . 19 . 35 . . Melee 53 | . . . 2 51 . . . Knockbacks 18 | . . . 17 1 . . . Impact 1 | . . . . 1 . . . Kinetic 15 | . . . 15 . . . . Secondary 2 | . . . 2 . . . . Self-Inflicted Damage 56 | . 40 . . 6 10 . . Shots 2 | . 1 . . . 1 . . Rammed 1 | . . . . 1 . . . Targets Rammed 1 | . . . . 1 . . . Kicked . | . . . . . . . . Crushed . | . . . . . . . . Highest Temperature 333 | . 96 2 333 32 255 . 79 Average Temperature 53 | . 30 2 94 10 45 . 39 Received Heat Transfer 2395 | . 75 18 1089 501 520 21 171 Effects 1 | . . . 1 . . . . Energy Bleed 1 | . . . 1 . . . . Siege Activations . | . . . . . . . . Robots Corrupted 2 | . . . 2 . . . . Combat Hostiles 2 | . . . 2 . . . . Parts Fried 8 | . 4 1 3 . . . . Impact Corruptions . | . . . . . . . . Robots Melted . | . . . . . . . . Combat Hostiles . | . . . . . . . . Parts Melted . | . . . . . . . . Heat Transferred 250 | . 50 . 200 . . . . Parts Sabotaged . | . . . . . . . . Parts Stolen . | . . . . . . . . Parts Stripped . | . . . . . . . . Power Chain Reactions 3 | . 1 . 2 . . . . Missiles Intercepted . | . . . . . . . . Alert | -11 -10 -9 -8 -7 -7 -7 -7 ------- Run | Scr Mat Mat Mat Fac Gar Fac Gar Peak Influence 855 | . 159 202 442 421 855 441 398 Average Influence 351 | . 82 80 280 327 667 423 350 Maximum Alert Level 3 | . . 1 2 2 3 2 1 Low Security (%) 25 | . . . . . . . . Level 1 48 | . . . . . . . . Level 2 13 | . . . . . . . . Level 3 13 | . . . . . . . . Level 4 . | . . . . . . . . Level 5 . | . . . . . . . . High Security . | . . . . . . . . Max Security . | . . . . . . . . Squads Dispatched 10 | . 2 1 4 3 . . . Investigation . | . . . . . . . . Extermination 2 | . . . . 2 . . . Reinforcement 8 | . 2 1 4 1 . . . Assault . | . . . . . . . . Garrison . | . . . . . . . . Intercept . | . . . . . . . . Construction Impeded 2 | . . . 2 . . . . Haulers Reinforced . | . . . . . . . . Stealth | -11 -10 -9 -8 -7 -7 -7 -7 --------- Run | Scr Mat Mat Mat Fac Gar Fac Gar Distress Signals 8 | . . 1 6 1 . . . Communications Jammed . | . . . . . . . . Distress Signals . | . . . . . . . . Times Spotted 168 | . 22 8 65 32 30 4 7 Peak Tracking Total 8 | . 4 4 7 5 8 4 4 Tactical Retreats 20 | . 8 1 3 2 6 . . Traps | -11 -10 -9 -8 -7 -7 -7 -7 ------- Run | Scr Mat Mat Mat Fac Gar Fac Gar Traps Triggered 13 | . 2 . . 1 8 1 1 Indirectly . | . . . . . . . . Trap Hack Attempts . | . . . . . . . . Triggered . | . . . . . . . . Disarmed . | . . . . . . . . Reprogrammed 6 | . . 6 . . . . . Reused . | . . . . . . . . Traps Extracted . | . . . . . . . . Installed . | . . . . . . . . Triggered . | . . . . . . . . Machines | -11 -10 -9 -8 -7 -7 -7 -7 ---------- Run | Scr Mat Mat Mat Fac Gar Fac Gar Machines Disabled 8 | . . 1 3 . 3 . 1 Max in Single Turn 1 | . . 1 1 . 1 . 1 Garrison Relay 4 | . . . . . 3 . 1 Machines Sabotaged . | . . . . . . . . Garrisons Compromised . | . . . . . . . . Overloaded Fab Kills . | . . . . . . . . Fab Network Shutdowns . | . . . . . . . . Hacking | -11 -10 -9 -8 -7 -7 -7 -7 --------- Run | Scr Mat Mat Mat Fac Gar Fac Gar Machines Accessed 5 | . 1 1 1 1 . 1 . Terminals 3 | . 1 1 1 . . . . Fabricators . | . . . . . . . . Repair Stations . | . . . . . . . . Recycling Units . | . . . . . . . . Scanalyzers . | . . . . . . . . Garrison Access 2 | . . . . 1 . 1 . Total Hacks 10 | . 3 4 1 1 . 1 . Successful 4 | . . 2 . 1 . 1 . Failed 6 | . 3 2 1 . . . . Catastrophic . | . . . . . . . . Database Lockouts . | . . . . . . . . Manual 6 | . 3 2 1 . . . . Terminals 8 | . 3 4 1 . . . . Fabricators . | . . . . . . . . Repair Stations . | . . . . . . . . Recycling Units . | . . . . . . . . Scanalyzers . | . . . . . . . . Garrison Access 2 | . . . . 1 . 1 . Terminal Hacks 1 | . . 1 . . . . . Reprogram Traps 1 | . . 1 . . . . . Fabricator Hacks . | . . . . . . . . Repair Station Hacks . | . . . . . . . . Recycling Unit Hacks . | . . . . . . . . Scanalyzer . | . . . . . . . . Garrison Access Hacks 2 | . . . . 1 . 1 . Unlock Access 2 | . . . . 1 . 1 . Unauthorized Hacks 3 | . . 3 . . . . . Terminals 1 | . . 1 . . . . . Botnet 1 | . . 1 . . . . . Fabricators . | . . . . . . . . Repair Stations . | . . . . . . . . Recycling Units . | . . . . . . . . Scanalyzers . | . . . . . . . . Garrison Access . | . . . . . . . . Data Cores Recovered . | . . . . . . . . Used . | . . . . . . . . Hacking Detections 4 | . 1 1 1 1 . . . Full Trace Events . | . . . . . . . . Feedback Events . | . . . . . . . . Feedback Blocked . | . . . . . . . . Robot Schematics Acquired . | . . . . . . . . Robots Built . | . . . . . . . . Matter . | . . . . . . . . Time . | . . . . . . . . Total Robot Build Rating . | . . . . . . . . Part Schematics Acquired . | . . . . . . . . Parts Built . | . . . . . . . . Matter . | . . . . . . . . Time . | . . . . . . . . Total Part Build Rating . | . . . . . . . . Parts Repaired . | . . . . . . . . Time . | . . . . . . . . Parts Recycled . | . . . . . . . . Recycled Matter . | . . . . . . . . Retrieved Matter . | . . . . . . . . Retrieved Components . | . . . . . . . . Parts Scanalyzed . | . . . . . . . . Part Schematics Acquired . | . . . . . . . . Parts Damaged . | . . . . . . . . Bothacking | -11 -10 -9 -8 -7 -7 -7 -7 ------------ Run | Scr Mat Mat Mat Fac Gar Fac Gar Used RIF Installer 2 | . . . . . 1 . 1 Patrol Navigation 1 | . . . . . . . 1 Robots Hacked 6 | . . . . . 6 . . Non-combat . | . . . . . . . . Combat 6 | . . . . . 6 . . Robot Hacks Applied 6 | . . . . . 6 . . scatter_targeting 1 | . . . . . 1 . . mark_system 1 | . . . . . 1 . . overwrite_iff 1 | . . . . . 1 . . formatsys_high 3 | . . . . . 3 . . Relay Couplers Released 17 | . . . . . 13 . 4 Machine Destruction 17 | . . . . . 13 . 4 Attached 3 | . . . . . 2 . 1 Robots Rewired . | . . . . . . . . Allies Hacked . | . . . . . . . . Hacks Repelled . | . . . . . . . . Allies | -11 -10 -9 -8 -7 -7 -7 -7 -------- Run | Scr Mat Mat Mat Fac Gar Fac Gar Total Allies 4 | . . . . . 4 . . Largest Group 3 | . . . . . 3 . . Highest-Rated Group 77 | . . . . . 77 . . Highest-Rated Ally 32 | . . . . . 32 . . Total Orders . | . . . . . . . . Ally Attacks 10 | . . . . . 10 . . Total Damage 439 | . . . . . 439 . . Kills 2 | . . . . . 2 . . Allies Corrupted . | . . . . . . . . Allies Melted . | . . . . . . . . Intel | -11 -10 -9 -8 -7 -7 -7 -7 ------- Run | Scr Mat Mat Mat Fac Gar Fac Gar Robot Analysis Total . | . . . . . . . . Derelict Logs Recovered . | . . . . . . . . Drone Launches . | . . . . . . . . Drone Recoveries . | . . . . . . . . Exploration | -11 -10 -9 -8 -7 -7 -7 -7 ------------- Run | Scr Mat Mat Mat Fac Gar Fac Gar Turns Passed 6112 | 54 587 267 2133 1204 1293 284 290 Spaces Moved 3153 | 50 359 165 1053 571 643 159 153 Core 4 | 2 1 . . . 1 . . Treads . | . . . . . . . . Legs . | . . . . . . . . Wheels 3149 | 48 358 165 1053 571 642 159 153 Hover . | . . . . . . . . Flight . | . . . . . . . . Fastest Speed 50 | 50 80 130 140 150 150 160 160 Average Speed 148 | 78 115 130 148 155 167 160 160 Slowest Speed 3000 | 80 1150 130 220 170 3000 160 160 Overloaded Moves . | . . . . . . . . Propulsion Burnouts . | . . . . . . . . Robots Hopped . | . . . . . . . . Cave-ins Triggered . | . . . . . . . . Exploration Rate (%) 35 | 4 55 17 81 20 65 6 36 Regions Visited 7 Branch Regions . Pre-discovered Areas . | . . . . . . . . Known Exits Taken 2 | . . . . 1 . 1 . Unknown Exits Taken 4 | 1 1 1 1 . . . . Scrap Searched . | . . . . . . . . Spaces Dug 22 | . . . 8 9 . 5 . Terrain Destroyed 119 | . 2 . 57 9 46 5 . Melee 22 | . . . 8 9 . 5 . Projectile 8 | . . . 5 . 3 . . AOE 89 | . 2 . 44 . 43 . . Actions | -11 -10 -9 -8 -7 -7 -7 -7 --------- Run | Scr Mat Mat Mat Fac Gar Fac Gar Total 3998 | 61 478 191 1388 744 786 176 174 Wait 245 | . 59 4 119 57 6 . . Move 3148 | 49 358 164 1052 571 642 159 153 Hop . | . . . . . . . . Pick Up 92 | 6 14 4 33 8 19 4 4 Fast Attach 22 | 6 6 . 6 2 2 . . Attach 48 | . 3 3 20 11 6 3 2 Detach 5 | . . . 3 . 2 . . Swap 28 | . 2 1 8 6 8 2 1 Drop 16 | . 3 . 6 3 3 1 . Fire 242 | . 33 15 111 27 41 1 14 Melee 104 | . . . 30 58 10 6 . Ram 1 | . . . . 1 . . . Kick . | . . . . . . . . Crush . | . . . . . . . . Escape Stasis 45 | . . . . . 45 . . Rewire 2 | . . . . . 2 . . Trap . | . . . . . . . . Miscellaneous . | . . . . . . . . Route ------- -11/Scrapyard -10/Materials (discovered 2 exits: *Mat x2) -9/Materials -8/Materials (discovered 2 exits: *Fac x2) -7/Factory (discovered 2 exits: [*Low] / Gar) -7/Garrison (discovered 3 exits: *Fac x3) -7/Factory -7/Garrison History --------- Turn | Location | Event 26 | -11/Scrapyard | Discovered new exit (range 14) 55 | -11/Scrapyard | Entered Materials 207 | -10/Materials | Discovered new exit (range 12) 393 | -10/Materials | Build established: Hauler-Mutant 544 | -10/Materials | Discovered new exit (range 9) 642 | -10/Materials | Entered another Materials area 642 | -9/Materials | Evolved 2 slots: Utility x2 826 | -9/Materials | Discovered new exit (range 3) 909 | -9/Materials | Entered another Materials area 909 | -8/Materials | Evolved 2 slots: Utility x2 1236 | -8/Materials | Lost 4 parts (1p1n2w) 1643 | -8/Materials | Lost 4 parts (1p1n2w) 1777 | -8/Materials | Core integrity fell below 50% 1805 | -8/Materials | Lost 4 parts (2u2w) 2090 | -8/Materials | Discovered new exit (range 5) 2722 | -8/Materials | Discovered new exit (range 13) 3042 | -8/Materials | Entered Factory 3042 | -7/Factory | Evolved 2 slots: Utility x2 3222 | -7/Factory | Discovered new exit (range 9) 3429 | -7/Factory | Lost 4 parts (1n2u1w) 3588 | -7/Factory | Lost 3 parts (1p2u) 4246 | -7/Factory | Identified exit to Garrison 4246 | -7/Factory | Entered Garrison 4317 | -7/Garrison | Garrison Relay disabled 4342 | -7/Garrison | Triggered checkpoint 4440 | -7/Garrison | Triggered checkpoint 4532 | -7/Garrison | Destroyed 7 combat bots 4614 | -7/Garrison | Discovered new exit (range 15) 4650 | -7/Garrison | Installed Relay Interface Framework 4692 | -7/Garrison | Triggered checkpoint 4733 | -7/Garrison | Garrison Relay disabled 4925 | -7/Garrison | Triggered checkpoint 4926 | -7/Garrison | Core integrity fell below 50% 4951 | -7/Garrison | Garrison Relay disabled 5041 | -7/Garrison | Discovered new exit (range 9) 5176 | -7/Garrison | Triggered checkpoint 5257 | -7/Garrison | Build established: Bothacker-Mutant 5292 | -7/Garrison | Triggered checkpoint 5366 | -7/Garrison | Discovered new exit (range 10) 5458 | -7/Garrison | Spotted B-75 Beast 5520 | -7/Garrison | Lost 5 parts (1n2u2w) 5539 | -7/Garrison | Entered Factory 5822 | -7/Factory | Core integrity fell below 20% 5823 | -7/Factory | Identified exit to Garrison 5823 | -7/Factory | Entered Garrison 5831 | -7/Garrison | Expanded RIF knowledge: Patrol Navigation 5904 | -7/Garrison | Triggered checkpoint 5922 | -7/Garrison | Garrison Relay disabled 6094 | -7/Garrison | Triggered checkpoint 6113 | -7/Garrison | Destroyed by G-47 Trooper with Particle Gun Last Messages --------------- 05922_ Garrison Relay disabled. 05922_ Relay Coupler [Specialist] tumbles out of relay unit. 05922_ Relay Coupler [NC] tumbles out of relay unit. 05922_ Relay Coupler [Swarmer] tumbles out of relay unit. 05922_ Unknown Hackware tumbles out of relay unit. 05926_ Acquired Relay Coupler [Swarmer]. 05930_ Acquired Unknown Hackware. 05932_ Acquired Relay Coupler [Specialist]. 05935_ Acquired Relay Coupler [NC]. 05936_ Identified Relay Coupler [Sentry]. 05990_ Acquired 23 matter. 06009_ KAQ6RSI5AHXX> AJ=T= P, ICNGVDDKK&7| 06094_ Beams of light sweep through the air. An alarm sounds. 06095_ Relay Coupler [Sentry] destroyed. 06096_ Slug penetrates G-47 Trooper. 06099_ G-47 Trooper destroyed. 06102_ Acquired 40 matter. 06103_ Acquired 49 matter. 06110_ Slug penetrates G-47 Trooper. 06113_ Slug penetrates L-41 Fighter. Map ----- +----------------------------------------------------+ | ?????????????????????????????????????????????????? | | ?????????????????????????????????????????????????? | | ?????????????????????????????????????????????????? | | ?????????????????????????????????????????????????? | | ?????????????????????????????????????????????????? | | ?????????????????????????????????????????????????? | | ?????????????????????????????????????????????????? | | ?????????????????????????????????????????????????? | | ???????????????????????????????? ???????????????? | | ???????????????????????????????# ???????????????? | | ???????????????????????????????# ???????????????? | | ????????????????????????##""""## ##?????????????? | | ??????????????????????? #?????????????? | | ????????????????????? ? #?????????????? | | ???????????????????? ?? #?????????????? | | ????????????????????# ?# ## #?????????????? | | ????????????????????# ## ## #?????????????? | | ????????????????????" ^ "?????????????? | | ????????????????????" "?????????????? | | ????????????????????" "?????????????? | | ????????????????????" ? ^^ "?????????????? | | ????????????????????# ?# ## #?????????????? | | ???????????########## ## ^## #############?? | | ??????????# g l #?? | | ?????????????? gg #?? | | ????????????????????# @ [= ########## #?? | | ????????????????????###### ! ######????????# #?? | | ?????????????????????????# ==#?# #?????????# #?? | | ?????????????????????????######?# #?????????# #?? | | ????????????????????????????# ### #?????????# #?? | | ????????????????????????????# #?????????# #?? | | ????????????????????????????##### #?????????# #?? | | ????????????????????????????????# #?????????# #?? | | ????????????????????????????????# #?????????# ### | | ????????????????????????????????# #??###????# | | ????????????????????????????????# #### ###### | | ????????????????????????????????# " ### | | ????????????????????????????????# ###### #######?? | | ????????????????????????????????# #????# #???????? | | ????????????????????????????????# #????# ###?????? | | ??????????????????????????????########## #?????? | | ??????????????????????????????# #?????? | | ??????????????????????????????# ######## #?????? | | ?????????????????????????????#[ [??????# ###?????? | | ?????????????????????????????#[ [??????# #???????? | | ?????????????????????????????#[ [#?????# #???????? | | ?????????????????????????????#[ [#?????# #???????? | | ?????????????????????????????#####???### #???????? | | ?????????????????????????????????????#"# #???????? | | ?????????????????????????????????????#" #???????? | +----------------------------------------------------+ Best States ------------- Heat Dissipation 48 Energy Generation 16 Energy Capacity 290 Matter Stores 300 Matter Capacity 300 Sight Range 16 Terrain Scan Density 10 Armor Coverage 600 Resistance: KI 30 Core Shielding 20 Evasion (%) 44 Item Schematics ----------------- None Robot Schematics ------------------ None Fabricated ------------ Nothing Alien Tech Used ----------------- None Achievements -------------- Packrat Tank Challenges ------------ None Game ------ Seed MetafieldReactiveChainsword Manual? 0 Play Time 01:01:02 Cumulative 88.4 hours Start 2019.10.26 @ 22:14:22 End 2019.10.26 @ 23:13:24 Sessions 1 Manual Loads 0 Difficulty Rogue Special Mode None Game No. 151 Rogue 151 Adventurer 0 Explorer 0 Win Type - Total 0 Types 0/0/0/0/0/0/0 Lore% 27 Gallery% 47 Achievement% 37 Wizard Run 0 Options --------- ASCII 0 Keyboard 0 Movement Mouse Keybinds 0 Fullscreen 1 Font 14/SmallcapsGlow Map View 84x54 Tactical HUD 1 Map Filters NONE Filters NONE Steam 1 RUN: 6a12bcf9-7c12-4ae8-a5e7-e89414281bbe